bitfinex/quotes_SOLUSD_20240913
["timestamp","ask_amount","ask_price","bid_price","bid_amount"]
[1726185600935,23.776884,136.45,136.44,0.2363774]
[1726185604115,58.91228089,136.49,136.44,0.2363774]
[1726185604316,57.63394018,136.49,136.44,0.2363774]
[1726185604815,50.0,136.49,136.44,0.2363774]
[1726185605233,57.63648427,136.49,136.44,0.2363774]
[1726185605929,0.12549,136.48,136.44,0.2363774]
[1726185606108,24.027864,136.48,136.44,0.2363774]
[1726185607630,17.58492481,136.5,136.45,11.55425689]
[1726185607835,17.58492481,136.52,136.47,11.55425689]
[1726185608131,50.0,136.5,136.44,16.8088774]
[1726185608317,50.0,136.48,136.44,16.8088774]
[1726185609026,23.776884,136.47,136.44,16.8088774]
[1726185610131,73.776884,136.45,136.44,0.2363774]
[1726185610340,74.027864,136.45,136.44,0.2363774]
[1726185613919,24.027864,136.45,136.44,0.2363774]
[1726185614410,23.776884,136.45,136.44,0.2363774]
[1726185616231,51.27869346,136.49,136.44,0.2363774]
[1726185616232,50.0,136.49,136.44,0.2363774]
[1726185617244,25.05787313,136.51,136.44,0.2363774]
[1726185617537,25.22380557,136.52,136.44,0.2363774]
[1726185617843,17.58817655,136.52,136.44,11.79063429]
[1726185618041,50.0,136.53,136.45,11.55425689]
[1726185618332,50.0,136.53,136.46,15.2201]
[1726185618538,50.0,136.53,136.46,21.3755]
[1726185619131,50.0,136.53,136.46,32.92975689]
[1726185619337,57.46969658,136.55,136.47,11.55425689]
[1726185619615,50.0,136.55,136.47,11.55425689]
[1726185620445,57.63233551,136.55,136.47,11.55425689]
[1726185621134,23.776884,136.54,136.47,11.55425689]
[1726185622646,23.776884,136.52,136.47,11.55425689]
[1726185622852,23.776884,136.52,136.46,32.92975689]
[1726185623944,22.06,136.51,136.46,32.92975689]
[1726185624239,23.776884,136.52,136.46,32.92975689]
[1726185624453,23.776884,136.52,136.47,11.55425689]
[1726185624643,23.776884,136.52,136.48,11.55425689]
[1726185625544,23.776884,136.52,136.5,11.55425689]
[1726185626324,23.776884,136.52,136.49,11.55425689]
[1726185627239,23.776884,136.52,136.48,11.55425689]
[1726185627431,23.776884,136.52,136.46,32.92975689]
[1726185628025,23.776884,136.52,136.46,21.3755]
[1726185628839,23.776884,136.5,136.46,21.3755]
[1726185629345,95.836884,136.5,136.44,0.2363774]
[1726185629652,0.25098,136.49,136.44,0.2363774]
[1726185630151,23.776884,136.47,136.44,0.2363774]
[1726185635049,30.371784,136.47,136.44,0.2363774]
[1726185642358,23.776884,136.47,136.44,0.2363774]
[1726185642531,6.5945,136.48,136.44,0.2363774]
[1726185642532,23.776884,136.48,136.44,0.2363774]
[1726185644849,23.902374,136.49,136.44,0.2363774]
[1726185645042,23.776884,136.49,136.44,0.2363774]
[1726185645865,30.370784,136.49,136.44,0.2363774]
[1726185649854,6.5947,136.48,136.44,0.2363774]
[1726185650154,30.622664,136.47,136.44,0.2363774]
[1726185651371,23.902374,136.47,136.44,0.2363774]
[1726185652774,30.497274,136.47,136.44,0.2363774]
[1726185654364,23.776884,136.45,136.44,0.2363774]
[1726185657994,30.372684,136.45,136.44,0.2363774]
[1726185658289,30.623664,136.45,136.44,0.2363774]
[1726185659367,52.683664,136.45,136.44,0.2363774]
[1726185661593,52.183664,136.45,136.44,0.2363774]
[1726185662489,51.183664,136.45,136.44,0.2363774]
[1726185663377,50.0,136.46,136.44,0.2363774]
[1726185663579,86.30770579,136.48,136.44,0.2363774]
[1726185663878,64.24770579,136.48,136.44,0.2363774]
[1726185664182,56.5945,136.48,136.44,0.2363774]
[1726185665392,24.027864,136.47,136.44,0.2363774]
[1726185665578,56.5935,136.5,136.44,11.79063429]
[1726185665772,50.0,136.5,136.45,15.3107]
[1726185666079,50.0,136.5,136.45,26.86495689]
[1726185666889,50.0,136.5,136.45,15.3107]
[1726185667077,23.776884,136.49,136.45,15.3107]
[1726185674282,23.776884,136.47,136.45,15.3107]
[1726185674484,23.776884,136.49,136.45,15.3107]
[1726185675382,30.370784,136.49,136.45,15.3107]
[1726185677816,23.776884,136.47,136.44,0.2363774]
[1726185678694,0.12549,136.46,136.44,0.2363774]
[1726185678911,0.25098,136.46,136.44,0.2363774]
[1726185679413,23.776884,136.45,136.44,0.2363774]
[1726185684325,45.836884,136.45,136.44,0.2363774]
[1726185684647,23.776884,136.45,136.44,0.2363774]
[1726185688232,24.027864,136.45,136.44,0.2363774]
[1726185688453,52.683664,136.45,136.44,0.2363774]
[1726185690720,30.623664,136.45,136.44,0.2363774]
[1726185691030,24.027864,136.45,136.44,0.2363774]
[1726185693333,6.5949,136.47,136.44,0.2363774]
[1726185693529,50.0,136.46,136.44,0.2363774]
[1726185694741,23.776884,136.45,136.44,0.2363774]
[1726185701751,30.623664,136.45,136.44,0.2363774]
[1726185702730,23.902374,136.45,136.44,0.2363774]
[1726185704042,79.71761779,136.48,136.44,0.2363774]
[1726185704252,72.06,136.48,136.44,0.2363774]
[1726185704417,56.5947,136.48,136.44,0.2363774]
[1726185705543,6.5939,136.49,136.44,0.2363774]
[1726185706147,23.776884,136.48,136.44,0.2363774]
[1726185712250,23.902374,136.49,136.44,0.2363774]
[1726185713350,30.496274,136.49,136.44,0.2363774]
[1726185714629,23.776884,136.47,136.44,0.2363774]
[1726185714835,23.902374,136.49,136.44,0.2363774]
[1726185717348,30.496274,136.49,136.44,0.2363774]
[1726185720649,56.5944,136.48,136.44,0.2363774]
[1726185720845,23.902374,136.47,136.44,0.2363774]
[1726185721049,30.497274,136.47,136.44,0.2363774]
[1726185722246,23.776884,136.45,136.44,0.2363774]
[1726185726753,6.594,136.49,136.44,0.2363774]
[1726185726942,23.902374,136.48,136.44,0.2363774]
[1726185728850,23.776884,136.48,136.44,0.2363774]
[1726185732343,23.902374,136.49,136.44,0.2363774]
[1726185736577,50.0,136.48,136.44,0.2363774]
[1726185736760,23.776884,136.47,136.44,0.2363774]
[1726185737473,23.776884,136.48,136.44,0.2363774]
[1726185737860,73.776884,136.48,136.44,0.2363774]
[1726185738269,23.776884,136.48,136.44,0.2363774]
[1726185738773,30.371184,136.48,136.44,0.2363774]
[1726185739271,23.776884,136.48,136.44,0.2363774]
[1726185749877,50.0,136.46,136.44,0.2363774]
[1726185750181,23.776884,136.45,136.44,0.2363774]
[1726185750379,23.902374,136.45,136.44,0.2363774]
[1726185750881,23.776884,136.45,136.44,0.2363774]
[1726185753890,23.776884,136.45,136.4,16.6026765]
[1726185753891,23.776884,136.41,136.4,0.2509765]
[1726185754193,24.027864,136.41,136.4,0.2509765]
[1726185754968,80.625564,136.41,136.4,0.2509765]
[1726185760186,102.685564,136.41,136.4,0.2509765]
[1726185764591,110.32900433,136.41,136.4,0.2509765]
[1726185766604,23.776884,136.37,136.36,0.2509765]
[1726185766788,24.027864,136.37,136.36,0.2509765]
[1726185767314,52.687464,136.37,136.36,0.2509765]
[1726185768293,73.776884,136.33,136.32,0.2509765]
[1726185768503,23.902374,136.33,136.32,0.2509765]
[1726185768673,24.027864,136.33,136.32,0.2509765]
[1726185770177,74.027864,136.33,136.32,0.2509765]
[1726185770607,23.902374,136.33,136.32,0.2509765]
[1726185770775,56.5997,136.37,136.32,15.3535765]
[1726185771084,0.12549,136.36,136.32,15.3535765]
[1726185771285,56.5997,136.37,136.32,15.3535765]
[1726185772477,0.12549,136.36,136.32,15.3535765]
[1726185773307,24.027864,136.36,136.32,15.3535765]
[1726185773603,22.06,136.39,136.33,11.55425689]
[1726185773604,50.0,136.39,136.33,11.55425689]
[1726185773776,64.24154033,136.41,136.34,11.55425689]
[1726185773972,56.5981,136.41,136.34,11.55425689]
[1726185774177,50.0,136.39,136.34,11.55425689]
[1726185775705,23.776884,136.38,136.34,11.55425689]
[1726185776006,23.776884,136.38,136.33,11.55425689]
[1726185777005,23.776884,136.38,136.34,11.55425689]
[1726185779288,23.776884,136.39,136.33,11.55425689]
[1726185780502,23.776884,136.39,136.32,26.90783339]
[1726185780503,73.776884,136.39,136.32,26.90783339]
[1726185780696,0.12549,136.38,136.32,26.90783339]
[1726185780893,0.25098,136.38,136.32,15.3535765]
[1726185782414,0.25098,136.38,136.32,26.90783339]
[1726185785000,0.25098,136.38,136.32,15.3535765]
[1726185786690,0.25098,136.38,136.32,26.90783339]
[1726185787691,0.12549,136.38,136.32,26.90783339]
[1726185787889,0.25098,136.38,136.32,26.90783339]
[1726185788899,28.91018,136.38,136.32,15.3535765]
[1726185789095,23.776884,136.37,136.32,15.3535765]
[1726185789407,0.12549,136.36,136.32,15.3535765]
[1726185795395,23.776884,136.35,136.32,15.3535765]
[1726185795595,0.12549,136.36,136.32,15.3535765]
[1726185802820,23.776884,136.34,136.32,0.2509765]
[1726185804226,23.902374,136.35,136.32,0.2509765]
[1726185805014,23.902374,136.35,136.33,6.6012]
[1726185806321,0.12549,136.35,136.33,6.6012]
[1726185808520,23.776884,136.36,136.33,6.6012]
[1726185811107,23.776884,136.36,136.34,6.6011]
[1726185811425,0.12549,136.37,136.33,16.4]
[1726185811605,24.027864,136.38,136.35,6.6005]
[1726185814743,23.776884,136.36,136.34,16.5025]
[1726185820526,22.08,136.4,136.34,15.123]
[1726185820720,50.0,136.44,136.36,28.05405689]
[1726185821118,50.0,136.44,136.36,34.60485689]
[1726185821540,22.08,136.43,136.36,34.60485689]
[1726185821720,22.08,136.43,136.39,6.5983]
[1726185822035,6.5963,136.44,136.4,6.5982]
[1726185822336,6.5963,136.44,136.39,6.5986]
[1726185822526,6.5973,136.42,136.38,6.599]
[1726185822715,6.5973,136.42,136.36,6.5508]
[1726185822716,28.6773,136.42,136.36,6.5508]
[1726185823114,23.776884,136.41,136.36,6.5508]
[1726185823314,0.25098,136.4,136.36,6.5508]
[1726185823536,0.25098,136.4,136.37,6.5995]
[1726185828753,0.12549,136.4,136.38,6.5989]
[1726185829226,0.25098,136.4,136.37,6.5996]
[1726185830144,0.25098,136.4,136.37,23.0982]
[1726185832225,0.25098,136.4,136.37,16.4986]
[1726185837264,6.84938,136.4,136.34,15.123]
[1726185837453,0.25098,136.4,136.36,6.5998]
[1726185837636,0.25098,136.4,136.37,6.5996]
[1726185838041,0.12549,136.4,136.38,6.5991]
[1726185840663,0.12549,136.4,136.39,6.5987]
[1726185841659,0.12549,136.4,136.38,6.599]
[1726185842666,0.12549,136.4,136.38,23.0965]
[1726185854668,0.12549,136.4,136.38,16.4975]
[1726185857857,0.25098,136.4,136.37,6.5995]
[1726185858869,6.5987,136.39,136.35,23.1013]
[1726185859070,23.902374,136.38,136.35,23.1013]
[1726185859962,45.982374,136.38,136.34,15.123]
[1726185860155,45.982374,136.38,136.33,12.9204]
[1726185860156,23.776884,136.36,136.33,12.9204]
[1726185860668,23.776884,136.36,136.33,6.6013]
[1726185865286,23.776884,136.37,136.33,6.6013]
[1726185865467,0.25098,136.36,136.32,23.3575765]
[1726185865660,0.25098,136.36,136.32,16.7556765]
[1726185866481,0.25098,136.36,136.33,6.6012]
[1726185870383,0.25098,136.36,136.35,6.6006]
[1726185870690,0.25098,136.36,136.34,6.601]
[1726185871757,0.25098,136.36,136.34,16.5023]
[1726185873679,6.85118,136.36,136.32,6.8530765]
[1726185873880,6.85118,136.36,136.32,0.2509765]
[1726185873881,23.776884,136.35,136.32,0.2509765]
[1726185874085,0.12549,136.34,136.32,0.2509765]
[1726185874292,0.25098,136.34,136.32,0.2509765]
[1726185876295,23.776884,136.33,136.32,0.2509765]
[1726185876489,23.902374,136.33,136.32,0.2509765]
[1726185876981,16.4959,136.4,136.32,6.8528765]
[1726185876982,50.0,136.38,136.32,6.8528765]
[1726185877189,30.376684,136.37,136.32,6.8528765]
[1726185877386,52.707664,136.37,136.32,6.8528765]
[1726185878195,6.6001,136.36,136.32,6.8528765]
[1726185878380,24.027864,136.35,136.32,6.8528765]
[1726185893206,24.027864,136.35,136.32,0.2509765]
[1726185893506,0.25098,136.35,136.32,0.2509765]
[1726185894299,23.776884,136.34,136.32,0.2509765]
[1726185896390,45.856884,136.34,136.32,0.2509765]
[1726185896596,23.776884,136.34,136.32,0.2509765]
[1726185897291,0.12549,136.33,136.32,0.2509765]
[1726185901800,0.25098,136.33,136.32,0.2509765]
[1726185903699,0.12549,136.33,136.32,0.2509765]
[1726185903908,56.5995,136.38,136.32,0.2509765]
[1726185904088,50.0,136.38,136.32,0.2509765]
[1726185904287,58.8,136.43,136.33,11.55425689]
[1726185904288,63.72601103,136.42,136.33,11.55425689]
[1726185904490,50.0,136.42,136.34,11.55425689]
[1726185904697,6.5983,136.4,136.35,6.6006]
[1726185905790,6.5987,136.39,136.35,6.6006]
[1726185906206,0.12549,136.38,136.34,23.1033]
[1726185906412,24.027864,136.38,136.34,23.1033]
[1726185907413,6.5978,136.41,136.36,6.6]
[1726185908025,28.6778,136.41,136.36,6.6]
[1726185908500,22.08,136.38,136.32,15.4487765]
[1726185908690,23.902374,136.37,136.33,6.6012]
[1726185909022,24.027864,136.37,136.33,6.6012]
[1726185913804,24.027864,136.37,136.34,6.601]
[1726185914008,24.027864,136.37,136.33,16.5035]
[1726185914009,6.5986,136.4,136.35,6.6005]
[1726185914318,50.0,136.41,136.37,6.5995]
[1726185915520,23.776884,136.4,136.37,6.5995]
[1726185915721,0.25098,136.39,136.37,6.5995]
[1726185918627,0.12549,136.39,136.37,6.5995]
[1726185918830,0.25098,136.39,136.37,6.5995]
[1726185921535,23.776884,136.38,136.35,6.6003]
[1726185921728,23.776884,136.38,136.36,6.5999]
[1726185924114,24.027864,136.39,136.36,6.5999]
[1726185925538,24.027864,136.39,136.36,23.2587]
[1726185926131,0.25098,136.39,136.37,6.5993]
[1726185926742,6.5974,136.42,136.38,6.5989]
[1726185928145,23.776884,136.41,136.38,6.5989]
[1726185928314,6.5968,136.43,136.39,6.5985]
[1726185928514,78.6768,136.43,136.38,6.5991]
[1726185929534,6.5973,136.42,136.38,6.5991]
[1726185929740,0.25098,136.41,136.38,6.5991]
[1726185930420,0.12549,136.41,136.38,6.5991]
[1726185930735,0.12549,136.41,136.39,6.5986]
[1726185934526,0.12549,136.41,136.38,6.5991]
[1726185934728,0.25098,136.41,136.38,6.5991]
[1726185934931,0.25098,136.41,136.37,23.0981]
[1726185935426,23.776884,136.4,136.37,23.0981]
[1726185935645,0.12549,136.39,136.37,23.0981]
[1726185938248,0.12549,136.39,136.37,16.4985]
[1726185938451,0.12549,136.39,136.38,6.5992]
[1726185938638,0.12549,136.39,136.37,23.098]
[1726185951235,22.08,136.42,136.38,6.5991]
[1726185951236,6.5973,136.42,136.38,6.5991]
[1726185952370,23.776884,136.41,136.38,6.5991]
[1726185952663,0.25098,136.4,136.38,6.5991]
[1726185953363,0.12549,136.4,136.38,6.5991]
[1726185953541,23.776884,136.42,136.39,6.5986]
[1726185953844,0.12549,136.41,136.39,6.5986]
[1726185959447,0.12549,136.41,136.4,6.5982]
[1726185959648,23.776884,136.43,136.4,6.5982]
[1726185959863,0.12549,136.42,136.4,6.5982]
[1726185960461,0.12549,136.42,136.39,16.4965]
[1726185960660,0.12549,136.42,136.39,23.0951]
[1726185960976,6.8466765,136.46,136.41,32.8775]
[1726185961275,6.5959,136.45,136.41,39.4751]
[1726185962171,0.12549,136.44,136.41,32.8775]
[1726185962385,0.12549,136.44,136.41,39.4752]
[1726185962869,24.027864,136.44,136.41,39.4752]
[1726185965072,23.776884,136.43,136.38,16.4973]
[1726185965377,0.25098,136.42,136.38,16.4973]
[1726185965879,0.25098,136.42,136.4,16.4945]
[1726185966085,0.2509765,136.46,136.43,6.5966]
[1726185967253,0.2509765,136.46,136.42,23.0899]
[1726185968467,24.0278605,136.46,136.42,23.0899]
[1726185968653,0.12549,136.45,136.42,23.0899]
[1726185969474,0.12549,136.45,136.43,6.5966]
[1726185971669,23.776884,136.45,136.43,6.5966]
[1726185971873,0.2509765,136.46,136.43,6.5966]
[1726185975381,72.08,136.43,136.37,21.7474]
[1726185975586,23.776884,136.4,136.37,21.7474]
[1726185975783,6.84978,136.39,136.34,6.6007]
[1726185975991,23.776884,136.38,136.35,6.6006]
[1726185976189,23.776884,136.38,136.33,15.9734]
[1726185976479,24.027864,136.39,136.33,15.9734]
[1726185976662,30.626564,136.39,136.35,6.6006]
[1726185977290,24.027864,136.39,136.37,6.5996]
[1726185977468,24.027864,136.39,136.36,6.6]
[1726185977469,0.25098,136.39,136.36,6.6]
[1726185977883,0.25098,136.39,136.35,23.1015]
[1726185981403,0.12549,136.39,136.36,6.5997]
[1726185981888,0.12549,136.39,136.35,23.1015]
[1726185982087,0.25098,136.39,136.35,23.1015]
[1726185985579,0.25098,136.39,136.35,16.501]
[1726185985893,0.25098,136.39,136.35,23.1012]
[1726185988195,0.25098,136.39,136.36,6.6001]
[1726185988787,23.776884,136.38,136.35,23.1016]
[1726185989590,24.027864,136.39,136.35,23.1016]
[1726185996899,24.027864,136.39,136.34,6.6009]
[1726185998296,23.776884,136.37,136.34,6.6009]
[1726185999941,23.776884,136.38,136.35,6.6006]
[1726186000091,0.25098,136.37,136.35,6.6006]
[1726186008427,0.12549,136.37,136.35,6.6006]
[1726186008708,0.25098,136.37,136.35,6.6006]
[1726186011319,0.25098,136.37,136.34,23.1033]
[1726186018405,0.25098,136.37,136.32,0.2509765]
[1726186018406,23.776884,136.35,136.32,0.2509765]
[1726186018606,50.0,136.36,136.32,0.2509765]
[1726186018821,24.027864,136.35,136.32,0.2509765]
[1726186019426,30.378484,136.33,136.32,0.2509765]
[1726186019602,30.503974,136.33,136.32,0.2509765]
[1726186019805,30.629464,136.33,136.32,0.2509765]
[1726186020024,24.027864,136.33,136.32,0.2509765]
[1726186021317,30.629464,136.33,136.32,0.2509765]
[1726186022727,24.027864,136.33,136.32,0.2509765]
[1726186028333,50.0,136.38,136.34,6.6008]
[1726186028630,50.0,136.38,136.32,23.3570765]
[1726186029612,24.027864,136.37,136.32,23.3570765]
[1726186029913,24.027864,136.37,136.32,0.2509765]
[1726186029914,23.776884,136.34,136.32,0.2509765]
[1726186030118,0.25098,136.33,136.32,0.2509765]
[1726186032439,80.629464,136.33,136.32,0.2509765]
[1726186038837,102.709464,136.33,136.32,0.2509765]
[1726186039131,146.859464,136.33,136.32,0.2509765]
[1726186039432,140.257864,136.33,136.32,0.2509765]
[1726186039636,146.859464,136.33,136.32,0.2509765]
[1726186041032,80.629464,136.33,136.32,0.2509765]
[1726186047136,74.027864,136.33,136.32,0.2509765]
[1726186047317,80.629464,136.33,136.32,0.2509765]
[1726186052541,102.709464,136.33,136.32,0.2509765]
[1726186052848,80.629464,136.33,136.32,0.2509765]
[1726186060535,24.027864,136.33,136.32,0.2509765]
[1726186062342,56.6007,136.35,136.32,0.2509765]
[1726186062850,56.5998,136.37,136.33,6.6014]
[1726186063154,6.5992,136.38,136.33,6.6014]
[1726186063351,6.5992,136.38,136.34,6.601]
[1726186064639,56.5988,136.39,136.34,6.601]
[1726186064846,65.3982,136.4,136.35,16.551]
[1726186066333,24.027864,136.39,136.36,6.6001]
[1726186070246,56.598,136.41,136.36,6.6001]
[1726186070557,56.598,136.41,136.37,6.5996]
[1726186071563,23.776884,136.4,136.37,6.5996]
[1726186071857,0.12549,136.39,136.37,6.5996]
[1726186080456,0.12549,136.39,136.36,23.1]
[1726186081966,0.12549,136.39,136.37,6.5995]
[1726186086588,0.12549,136.39,136.36,16.5]
[1726186086750,23.776884,136.38,136.35,23.1512]
[1726186087070,0.12549,136.37,136.35,23.1512]
[1726186091658,0.25098,136.37,136.35,16.551]
[1726186097583,6.85088,136.37,136.35,16.551]
[1726186097788,30.376984,136.36,136.33,16.5031]
[1726186098084,23.776884,136.34,136.32,15.5940765]
[1726186098389,0.12549,136.33,136.32,15.5940765]
[1726186098758,0.25098,136.33,136.32,15.5940765]
[1726186100062,0.25098,136.33,136.32,0.2509765]
[1726186103068,80.629464,136.33,136.32,0.2509765]
[1726186109683,74.027864,136.33,136.32,0.2509765]
[1726186111481,80.629464,136.33,136.32,0.2509765]
[1726186116784,102.709464,136.33,136.32,0.2509765]
[1726186117313,80.629464,136.33,136.32,0.2509765]
[1726186135315,74.027864,136.33,136.32,0.2509765]
[1726186140723,50.0,136.35,136.32,23.1079765]
[1726186141524,50.0,136.35,136.32,16.5058765]
[1726186141525,56.6009,136.35,136.32,16.5058765]
[1726186141906,24.027864,136.34,136.32,16.5058765]
[1726186145213,80.378484,136.33,136.32,0.2509765]
[1726186145414,80.629464,136.33,136.32,0.2509765]
[1726186147225,74.027864,136.33,136.32,0.2509765]
[1726186148037,24.027864,136.33,136.32,0.2509765]
[1726186149741,74.027864,136.33,136.32,0.2509765]
[1726186155745,24.027864,136.33,136.32,0.2509765]
[1726186156047,6.6002,136.36,136.32,21.8852765]
[1726186156845,56.5997,136.37,136.32,15.2831765]
[1726186157231,30.628164,136.36,136.32,21.8848765]
[1726186158345,30.628164,136.36,136.32,38.3898765]
[1726186159846,56.6006,136.35,136.32,31.7881765]
[1726186160061,0.25098,136.34,136.32,38.3899765]
[1726186160234,30.628064,136.36,136.32,38.3899765]
[1726186160422,23.776884,136.34,136.32,38.3899765]
[1726186161546,23.776884,136.35,136.32,38.3899765]
[1726186161718,0.12549,136.34,136.32,38.3899765]
[1726186164441,0.12549,136.34,136.32,31.7881765]
[1726186164645,0.25098,136.34,136.32,31.7881765]
[1726186164835,0.25098,136.34,136.32,38.3899765]
[1726186165035,0.12549,136.34,136.32,38.3899765]
[1726186165736,0.25098,136.34,136.32,38.3899765]
[1726186170062,23.776884,136.35,136.32,31.7881765]
[1726186170255,50.0,136.39,136.35,6.6006]
[1726186170549,50.0,136.41,136.37,6.5995]
[1726186170727,56.5979,136.41,136.36,39.1442]
[1726186171259,50.0,136.41,136.37,6.5994]
[1726186172441,56.5978,136.41,136.36,39.1443]
[1726186172652,24.027864,136.4,136.36,39.1443]
[1726186173441,24.027864,136.4,136.37,6.5996]
[1726186173840,68.177864,136.4,136.37,6.5996]
[1726186174048,24.027864,136.4,136.36,39.1443]
[1726186177775,24.027864,136.4,136.36,16.0445]
[1726186178061,30.626164,136.4,136.36,22.6446]
[1726186178358,23.776884,136.38,136.36,16.0445]
[1726186178568,0.25098,136.37,136.36,16.0445]
[1726186184665,23.776884,136.36,136.33,23.1052]
[1726186184850,0.25098,136.35,136.33,23.1052]
[1726186200659,0.25098,136.35,136.34,6.6011]
[1726186201161,0.25098,136.35,136.33,16.5037]
[1726186202181,0.25098,136.35,136.33,23.105]
[1726186202761,0.12549,136.35,136.34,6.6011]
[1726186204374,23.776884,136.36,136.35,6.6006]
[1726186204569,23.902374,136.36,136.35,6.6006]
[1726186206075,50.0,136.39,136.36,6.5998]
[1726186207583,24.027864,136.38,136.36,6.5998]
[1726186209164,23.902374,136.38,136.37,6.5996]
[1726186210579,23.776884,136.4,136.38,6.5988]
[1726186210781,0.12549,136.39,136.38,6.5988]
[1726186211675,0.12549,136.39,136.37,23.0981]
[1726186211884,23.902374,136.4,136.38,6.599]
[1726186213269,23.776884,136.4,136.38,6.599]
[1726186214892,23.776884,136.4,136.39,6.5987]
[1726186215693,0.12549,136.41,136.4,6.5982]
[1726186215894,23.776884,136.42,136.4,6.5982]
[1726186217195,23.902374,136.43,136.4,6.5982]
[1726186217377,74.027864,136.43,136.4,6.5982]
[1726186217698,80.624664,136.43,136.39,23.0948]
[1726186217882,74.027864,136.43,136.39,16.4962]
[1726186219084,23.776884,136.39,136.36,39.2767]
[1726186219279,0.12549,136.38,136.36,39.2767]
[1726186219674,0.25098,136.38,136.36,39.2767]
[1726186220289,0.25098,136.38,136.37,6.5996]
[1726186220601,0.12549,136.38,136.37,6.5996]
[1726186221189,23.776884,136.4,136.37,6.5996]
[1726186221397,0.12549,136.39,136.37,6.5996]
[1726186221583,0.25098,136.39,136.37,6.5996]
[1726186223587,23.776884,136.41,136.38,6.5991]
[1726186223900,0.12549,136.4,136.38,6.5991]
[1726186231687,50.0,136.37,136.33,32.7666]
[1726186231912,50.0,136.37,136.33,39.3681]
[1726186231913,24.027864,136.36,136.33,39.3681]
[1726186233310,24.027864,136.36,136.33,16.2632]
[1726186233485,30.628364,136.36,136.33,16.2632]
[1726186233685,30.628364,136.36,136.32,0.2509765]
[1726186234906,30.628364,136.36,136.32,6.8528765]
[1726186246315,73.776884,136.33,136.32,0.2509765]
[1726186246505,74.027864,136.33,136.32,0.2509765]
[1726186246708,24.027864,136.33,136.32,0.2509765]
[1726186252329,74.027864,136.33,136.32,0.2509765]
[1726186253701,56.6006,136.36,136.32,6.8530765]
[1726186253908,6.6008,136.35,136.32,0.2509765]
[1726186255107,24.027864,136.34,136.32,0.2509765]
[1726186255414,30.628964,136.34,136.32,0.2509765]
[1726186255598,73.776884,136.33,136.32,0.2509765]
[1726186255795,74.027864,136.33,136.32,0.2509765]
[1726186259115,24.027864,136.33,136.32,0.2509765]
[1726186262295,23.902374,136.33,136.32,0.2509765]
[1726186262501,23.776884,136.33,136.32,0.2509765]
[1726186265319,23.776884,136.33,136.32,6.8530765]
[1726186269930,23.776884,136.33,136.32,0.2509765]
[1726186270607,64.27234894,136.37,136.32,16.7557765]
[1726186270926,6.6003,136.36,136.32,23.3576765]
[1726186271336,56.5998,136.37,136.32,23.3576765]
[1726186271806,24.027864,136.36,136.32,23.3576765]
[1726186273927,24.027864,136.36,136.32,28.31003339]
[1726186274229,0.25098,136.36,136.32,28.31003339]
[1726186275329,0.25098,136.36,136.34,6.6011]
[1726186276008,30.378484,136.33,136.32,0.2509765]
[1726186276212,30.629464,136.33,136.32,0.2509765]
[1726186288739,74.779464,136.33,136.32,0.2509765]
[1726186288942,30.629464,136.33,136.32,0.2509765]
[1726186298948,74.779464,136.33,136.32,0.2509765]
[1726186299639,30.629464,136.33,136.32,0.2509765]
[1726186301557,57.65564658,136.34,136.32,0.2509765]
[1726186301854,56.6015,136.34,136.32,0.2509765]
[1726186302940,23.776884,136.33,136.32,0.2509765]
[1726186303335,24.027864,136.33,136.32,0.2509765]
[1726186318041,50.0,136.36,136.32,0.2509765]
[1726186318268,6.6,136.37,136.32,6.8526765]
[1726186319572,24.027864,136.36,136.32,6.8526765]
[1726186322075,50.0,136.38,136.35,6.6005]
[1726186322251,50.0,136.41,136.37,23.0983]
[1726186322444,13.92891103,136.42,136.38,15.0027]
[1726186322762,50.0,136.43,136.39,6.5985]
[1726186323074,50.0,136.43,136.4,6.5982]